[Event "Titled Tuesday Blitz April 19 Early 2022"]
[White "Kosteniuk, Alexandra"]
[Black "Soucek, Petr"]
[WhiteFideId "4128125"]
[BlackFideId "23715170"]
[WhiteElo "2469"]
[BlackElo "1979"]
[Result "1-0"]
[Round "02"]
[TimeControl "180+1"]
[Date "2022.04.19"]
[WhiteClock "0:01:14"]
[BlackClock "0:00:03"]

1. e4 {[%clk 0:03:00]}  d6 {[%clk 0:02:56]} 2. d4 {[%clk 0:03:00]}  Nf6 {[%clk 0:02:54]} 3. Nc3 {[%clk 0:03:00]}  g6 {[%clk 0:02:54]} 4. Be3 {[%clk 0:03:00]}  c6 {[%clk 0:02:54]} 5. Qd2 {[%clk 0:03:00]}  Nbd7 {[%clk 0:02:54]} 6. Nf3 {[%clk 0:02:59]}  b5 {[%clk 0:02:53]} 7. e5 {[%clk 0:02:54]}  Ng4 {[%clk 0:02:49]} 8. e6 {[%clk 0:02:49]}  fxe6 {[%clk 0:02:37]} 9. Ng5 {[%clk 0:02:49]}  Ndf6 {[%clk 0:02:26]} 10. Be2 {[%clk 0:02:45]}  Nxe3 {[%clk 0:02:26]} 11. Qxe3 {[%clk 0:02:46]}  b4 {[%clk 0:02:17]} 12. Nce4 {[%clk 0:02:43]}  Nd5 {[%clk 0:02:10]} 13. Qf3 {[%clk 0:02:41]}  Nf6 {[%clk 0:02:04]} 14. h4 {[%clk 0:02:26]}  h6 {[%clk 0:01:26]} 15. Nh3 {[%clk 0:02:25]}  Bg7 {[%clk 0:00:56]} 16. Nf4 {[%clk 0:02:23]}  Kf7 {[%clk 0:00:43]} 17. Nxf6 {[%clk 0:02:08]}  exf6 {[%clk 0:00:40]} 18. Qxc6 {[%clk 0:02:08]}  Rb8 {[%clk 0:00:35]} 19. Qf3 {[%clk 0:02:04]}  f5 {[%clk 0:00:27]} 20. h5 {[%clk 0:01:58]}  g5 {[%clk 0:00:25]} 21. Ng6 {[%clk 0:01:59]}  Re8 {[%clk 0:00:22]} 22. O-O-O {[%clk 0:01:52]}  Qa5 {[%clk 0:00:20]} 23. Bc4 {[%clk 0:01:48]}  Bb7 {[%clk 0:00:18]} 24. d5 {[%clk 0:01:47]}  g4 {[%clk 0:00:12]} 25. dxe6+ {[%clk 0:01:37]}  Kg8 {[%clk 0:00:12]} 26. Qb3 {[%clk 0:01:37]}  d5 {[%clk 0:00:12]} 27. Bxd5 {[%clk 0:01:35]}  Bxd5 {[%clk 0:00:12]} 28. Rxd5 {[%clk 0:01:35]}  Qb6 {[%clk 0:00:11]} 29. e7 {[%clk 0:01:33]}  Kh7 {[%clk 0:00:11]} 30. Rxf5 {[%clk 0:01:32]}  Rbc8 {[%clk 0:00:09]} 31. Rd1 {[%clk 0:01:28]}  a5 {[%clk 0:00:07]} 32. Kb1 {[%clk 0:01:27]}  Qc6 {[%clk 0:00:07]} 33. Ne5 {[%clk 0:01:21]}  Bxe5 {[%clk 0:00:07]} 34. Rxe5 {[%clk 0:01:21]}  Qf6 {[%clk 0:00:06]} 35. Qd3+ {[%clk 0:01:20]}  Kh8 {[%clk 0:00:06]} 36. Rde1 {[%clk 0:01:18]}  Qxf2 {[%clk 0:00:03]} 37. Re6 {[%clk 0:01:17]}  Qf4 {[%clk 0:00:02]} 38. g3 {[%clk 0:01:16]}  Qg5 {[%clk 0:00:02]} 39. Qd4+ {[%clk 0:01:14]}  Kg8 {[%clk 0:00:02]} 40. Rg6+ {[%clk 0:01:14]}  Qxg6 {[%clk 0:00:03]} 41. hxg6 {[%clk 0:01:14]}  Rc7 {[%clk 0:00:02]} 42. Qd5+ {[%clk 0:01:13]}  Kg7 {[%clk 0:00:03]} 43. Qf7+ {[%clk 0:01:13]}  Kh8 {[%clk 0:00:03]} 44. Qh7# {[%clk 0:01:14]} 1-0


[Site "https://www.chess.com"]

[Event "Titled Tuesday Blitz April 19 Early 2022"]
[White "Krsnik Cohar, Ivan Vihor"]
[Black "Kostiukov, Alexandr"]
[WhiteFideId "14520044"]
[BlackFideId "14108100"]
[WhiteElo "2414"]
[BlackElo "2202"]
[Result "1-0"]
[Round "02"]
[TimeControl "180+1"]
[Date "2022.04.19"]
[WhiteClock "0:02:20"]
[BlackClock "0:01:31"]

1. d4 {[%clk 0:03:00]}  g6 {[%clk 0:02:51]} 2. Bg5 {[%clk 0:03:00]}  Bg7 {[%clk 0:02:48]} 3. c3 {[%clk 0:02:58]}  h6 {[%clk 0:02:48]} 4. Bh4 {[%clk 0:02:58]}  g5 {[%clk 0:02:48]} 5. Bg3 {[%clk 0:02:58]}  f5 {[%clk 0:02:48]} 6. e3 {[%clk 0:02:56]}  Nf6 {[%clk 0:02:48]} 7. h4 {[%clk 0:02:56]}  d6 {[%clk 0:02:43]} 8. hxg5 {[%clk 0:02:56]}  hxg5 {[%clk 0:02:44]} 9. Rxh8+ {[%clk 0:02:56]}  Bxh8 {[%clk 0:02:45]} 10. Nh3 {[%clk 0:02:56]}  g4 {[%clk 0:02:44]} 11. Nf4 {[%clk 0:02:56]}  e6 {[%clk 0:02:43]} 12. Nd2 {[%clk 0:02:54]}  Bg7 {[%clk 0:02:42]} 13. Bc4 {[%clk 0:02:54]}  Qe7 {[%clk 0:02:41]} 14. f3 {[%clk 0:02:53]}  gxf3 {[%clk 0:02:38]} 15. Qxf3 {[%clk 0:02:53]}  Nc6 {[%clk 0:02:38]} 16. Bh4 {[%clk 0:02:48]}  Qf7 {[%clk 0:02:30]} 17. d5 {[%clk 0:02:36]}  Ne5 {[%clk 0:02:30]} 18. Qe2 {[%clk 0:02:30]}  Nxc4 {[%clk 0:02:26]} 19. Qxc4 {[%clk 0:02:30]}  exd5 {[%clk 0:02:23]} 20. Qd3 {[%clk 0:02:30]}  c6 {[%clk 0:02:21]} 21. O-O-O {[%clk 0:02:30]}  Bd7 {[%clk 0:02:16]} 22. c4 {[%clk 0:02:30]}  dxc4 {[%clk 0:01:56]} 23. Nxc4 {[%clk 0:02:31]}  Ne4 {[%clk 0:01:56]} 24. Qxe4+ {[%clk 0:02:28]}  fxe4 {[%clk 0:01:53]} 25. Nxd6+ {[%clk 0:02:28]}  Kf8 {[%clk 0:01:47]} 26. Nxf7 {[%clk 0:02:28]}  Bg4 {[%clk 0:01:47]} 27. Nd8 {[%clk 0:02:20]}  Bxd1 {[%clk 0:01:44]} 28. Kxd1 {[%clk 0:02:21]}  Bxb2 {[%clk 0:01:41]} 29. Nxb7 {[%clk 0:02:21]}  Kf7 {[%clk 0:01:36]} 30. Nd8+ {[%clk 0:02:20]}  Kg8 {[%clk 0:01:31]} 31. Nxc6 {[%clk 0:02:20]}  Rc8 {[%clk 0:01:31]} 32. Ne7+ {[%clk 0:02:20]} 1-0


[Site "https://www.chess.com"]

[Event "Titled Tuesday Blitz April 19 Early 2022"]
[White "Krylov, Ivan"]
[Black "Wagner, Dinara"]
[WhiteFideId "24128066"]
[BlackFideId "24157570"]
[WhiteElo "2258"]
[BlackElo "2216"]
[Result "0-1"]
[Round "02"]
[TimeControl "180+1"]
[Date "2022.04.19"]
[WhiteClock "0:00:05"]
[BlackClock "0:00:13"]

1. e4 {[%clk 0:03:00]}  c5 {[%clk 0:02:59]} 2. Nf3 {[%clk 0:03:00]}  e6 {[%clk 0:02:59]} 3. c3 {[%clk 0:03:00]}  d5 {[%clk 0:02:59]} 4. exd5 {[%clk 0:03:01]}  Qxd5 {[%clk 0:02:59]} 5. d4 {[%clk 0:03:01]}  Nf6 {[%clk 0:02:59]} 6. Be3 {[%clk 0:03:02]}  cxd4 {[%clk 0:02:58]} 7. cxd4 {[%clk 0:03:01]}  Nc6 {[%clk 0:02:58]} 8. Nc3 {[%clk 0:03:01]}  Qd8 {[%clk 0:02:55]} 9. Be2 {[%clk 0:02:55]}  Be7 {[%clk 0:02:54]} 10. O-O {[%clk 0:02:55]}  O-O {[%clk 0:02:55]} 11. Rc1 {[%clk 0:02:52]}  Nb4 {[%clk 0:02:40]} 12. a3 {[%clk 0:02:44]}  Nbd5 {[%clk 0:02:41]} 13. Qb3 {[%clk 0:02:36]}  b6 {[%clk 0:02:35]} 14. Ne5 {[%clk 0:02:31]}  Bb7 {[%clk 0:02:35]} 15. Nb5 {[%clk 0:02:21]}  a6 {[%clk 0:02:14]} 16. Nc3 {[%clk 0:02:19]}  Rc8 {[%clk 0:02:11]} 17. Qa4 {[%clk 0:02:11]}  b5 {[%clk 0:02:09]} 18. Qb3 {[%clk 0:02:08]}  Qb6 {[%clk 0:02:04]} 19. Rfd1 {[%clk 0:02:03]}  Rfd8 {[%clk 0:02:04]} 20. Bf3 {[%clk 0:01:59]}  Nxe3 {[%clk 0:01:55]} 21. fxe3 {[%clk 0:01:59]}  Bxf3 {[%clk 0:01:53]} 22. Nxf3 {[%clk 0:02:00]}  Qb7 {[%clk 0:01:51]} 23. Ne2 {[%clk 0:01:37]}  Nd5 {[%clk 0:01:31]} 24. Kf2 {[%clk 0:01:32]}  h6 {[%clk 0:01:29]} 25. Nc3 {[%clk 0:01:21]}  Nf6 {[%clk 0:01:28]} 26. Ne2 {[%clk 0:01:21]}  Ng4+ {[%clk 0:01:28]} 27. Kg1 {[%clk 0:01:13]}  Qe4 {[%clk 0:01:28]} 28. Rxc8 {[%clk 0:01:06]}  Rxc8 {[%clk 0:01:29]} 29. Rd3 {[%clk 0:01:05]}  a5 {[%clk 0:01:12]} 30. h3 {[%clk 0:00:57]}  a4 {[%clk 0:01:11]} 31. Nd2 {[%clk 0:00:48]}  Qb7 {[%clk 0:00:26]} 32. Qd1 {[%clk 0:00:45]}  Nf6 {[%clk 0:00:27]} 33. Rc3 {[%clk 0:00:33]}  Rd8 {[%clk 0:00:26]} 34. Qc1 {[%clk 0:00:28]}  Nd5 {[%clk 0:00:26]} 35. Rd3 {[%clk 0:00:20]}  Bg5 {[%clk 0:00:27]} 36. Nf1 {[%clk 0:00:17]}  Rc8 {[%clk 0:00:25]} 37. Qd2 {[%clk 0:00:15]}  Qc6 {[%clk 0:00:24]} 38. Nc3 {[%clk 0:00:13]}  Nf6 {[%clk 0:00:19]} 39. Kf2 {[%clk 0:00:08]}  Qb7 {[%clk 0:00:19]} 40. Kg1 {[%clk 0:00:06]}  h5 {[%clk 0:00:19]} 41. Nh2 {[%clk 0:00:05]}  Ne4 {[%clk 0:00:11]} 42. Nf3 {[%clk 0:00:05]}  Nxd2 {[%clk 0:00:11]} 43. Nxd2 {[%clk 0:00:06]}  Bf6 {[%clk 0:00:11]} 44. Nde4 {[%clk 0:00:06]}  Be7 {[%clk 0:00:11]} 45. Rd2 {[%clk 0:00:05]}  b4 {[%clk 0:00:12]} 46. axb4 {[%clk 0:00:05]}  Qxb4 {[%clk 0:00:12]} 47. Rc2 {[%clk 0:00:05]}  Qb3 {[%clk 0:00:13]} 48. Rd2 {[%clk 0:00:05]}  a3 {[%clk 0:00:12]} 49. Rd1 {[%clk 0:00:03]}  axb2 {[%clk 0:00:12]} 50. Rb1 {[%clk 0:00:03]}  Rxc3 {[%clk 0:00:12]} 51. Nxc3 {[%clk 0:00:04]}  Qxc3 {[%clk 0:00:13]} 52. Kf2 {[%clk 0:00:04]}  Qc1 {[%clk 0:00:13]} 53. Rxb2 {[%clk 0:00:04]}  Qxb2+ {[%clk 0:00:13]} 54. Kf3 {[%clk 0:00:05]} 0-1


[Site "https://www.chess.com"]

[Event "Titled Tuesday Blitz April 19 Early 2022"]
[White "Lach, Aleksandra"]
[Black "Rudykh, Stepan"]
[WhiteFideId "1134299"]
[BlackFideId "4180321"]
[WhiteElo "2172"]
[BlackElo "2099"]
[Result "1-0"]
[Round "02"]
[TimeControl "180+1"]
[Date "2022.04.19"]
[WhiteClock "0:00:07"]
[BlackClock "0:00:10"]

1. e4 {[%clk 0:03:00]}  e6 {[%clk 0:02:58]} 2. d3 {[%clk 0:02:54]}  c5 {[%clk 0:02:57]} 3. Nd2 {[%clk 0:02:54]}  Nc6 {[%clk 0:02:58]} 4. g3 {[%clk 0:02:54]}  g6 {[%clk 0:02:58]} 5. Bg2 {[%clk 0:02:55]}  Bg7 {[%clk 0:02:59]} 6. c3 {[%clk 0:02:55]}  e5 {[%clk 0:02:58]} 7. Ne2 {[%clk 0:02:55]}  Nge7 {[%clk 0:02:57]} 8. O-O {[%clk 0:02:55]}  d6 {[%clk 0:02:58]} 9. f4 {[%clk 0:02:55]}  O-O {[%clk 0:02:56]} 10. h3 {[%clk 0:02:55]}  f5 {[%clk 0:02:56]} 11. Nc4 {[%clk 0:02:49]}  b5 {[%clk 0:02:55]} 12. Ne3 {[%clk 0:02:49]}  Be6 {[%clk 0:02:51]} 13. exf5 {[%clk 0:02:45]}  gxf5 {[%clk 0:02:50]} 14. fxe5 {[%clk 0:02:45]}  dxe5 {[%clk 0:02:49]} 15. b3 {[%clk 0:02:12]}  Rc8 {[%clk 0:02:36]} 16. Ba3 {[%clk 0:02:03]}  b4 {[%clk 0:02:27]} 17. cxb4 {[%clk 0:02:03]}  cxb4 {[%clk 0:02:25]} 18. Bb2 {[%clk 0:02:03]}  Qb6 {[%clk 0:02:20]} 19. Kf2 {[%clk 0:01:32]}  Bh6 {[%clk 0:02:11]} 20. d4 {[%clk 0:01:32]}  Bxe3+ {[%clk 0:01:51]} 21. Kxe3 {[%clk 0:01:32]}  Rcd8 {[%clk 0:01:49]} 22. Kf2 {[%clk 0:01:18]}  exd4 {[%clk 0:01:42]} 23. Bxc6 {[%clk 0:00:26]}  Nxc6 {[%clk 0:01:40]} 24. Kg2 {[%clk 0:00:26]}  Bd5+ {[%clk 0:01:09]} 25. Kh2 {[%clk 0:00:26]}  Be4 {[%clk 0:01:08]} 26. Nf4 {[%clk 0:00:26]}  Ne5 {[%clk 0:01:05]} 27. Qh5 {[%clk 0:00:25]}  Rf7 {[%clk 0:00:57]} 28. Rad1 {[%clk 0:00:23]}  Rg7 {[%clk 0:00:52]} 29. Rf2 {[%clk 0:00:14]}  d3 {[%clk 0:00:49]} 30. Rdf1 {[%clk 0:00:14]}  Qc7 {[%clk 0:00:41]} 31. Bxe5 {[%clk 0:00:12]}  Qxe5 {[%clk 0:00:40]} 32. Rd2 {[%clk 0:00:13]}  Rc8 {[%clk 0:00:35]} 33. Rfd1 {[%clk 0:00:13]}  a5 {[%clk 0:00:21]} 34. Qh6 {[%clk 0:00:11]}  Rc6 {[%clk 0:00:18]} 35. Qh4 {[%clk 0:00:10]}  Qd5 {[%clk 0:00:16]} 36. Nh5 {[%clk 0:00:08]}  Qf7 {[%clk 0:00:15]} 37. Nxg7 {[%clk 0:00:07]}  Qxg7 {[%clk 0:00:15]} 38. Qd8+ {[%clk 0:00:07]}  Qf8 {[%clk 0:00:14]} 39. Qd4 {[%clk 0:00:07]}  Qf7 {[%clk 0:00:14]} 40. Qe3 {[%clk 0:00:06]}  Qd5 {[%clk 0:00:13]} 41. Qg5+ {[%clk 0:00:06]}  Kf7 {[%clk 0:00:13]} 42. Qe3 {[%clk 0:00:06]}  Rg6 {[%clk 0:00:12]} 43. h4 {[%clk 0:00:06]}  Qe5 {[%clk 0:00:12]} 44. Qa7+ {[%clk 0:00:06]}  Kf6 {[%clk 0:00:12]} 45. Qe3 {[%clk 0:00:07]}  Kg7 {[%clk 0:00:12]} 46. Rxd3 {[%clk 0:00:07]}  f4 {[%clk 0:00:11]} 47. Rd7+ {[%clk 0:00:06]}  Kh6 {[%clk 0:00:11]} 48. Qxf4+ {[%clk 0:00:07]}  Qxf4 {[%clk 0:00:11]} 49. gxf4 {[%clk 0:00:08]}  Bf3 {[%clk 0:00:11]} 50. R1d6 {[%clk 0:00:07]}  Kh5 {[%clk 0:00:09]} 51. Rxg6 {[%clk 0:00:07]}  hxg6 {[%clk 0:00:10]} 52. Ra7 {[%clk 0:00:07]} 1-0


[Site "https://www.chess.com"]

[Event "Titled Tuesday Blitz April 19 Early 2022"]
[White "Laxman, R.R."]
[Black "Di Nicolantonio, Lucas"]
[WhiteFideId "5005361"]
[BlackFideId "680460"]
[WhiteElo "2476"]
[BlackElo "2381"]
[Result "0-1"]
[Round "02"]
[TimeControl "180+1"]
[Date "2022.04.19"]
[WhiteClock "0:01:46"]
[BlackClock "0:00:13"]

1. d4 {[%clk 0:03:00]}  d5 {[%clk 0:02:57]} 2. Nf3 {[%clk 0:03:00]}  Nf6 {[%clk 0:02:57]} 3. c4 {[%clk 0:03:00]}  e6 {[%clk 0:02:58]} 4. Nc3 {[%clk 0:03:00]}  dxc4 {[%clk 0:02:56]} 5. e3 {[%clk 0:03:01]}  c5 {[%clk 0:02:52]} 6. Bxc4 {[%clk 0:03:00]}  Nc6 {[%clk 0:02:53]} 7. O-O {[%clk 0:03:00]}  cxd4 {[%clk 0:02:54]} 8. Nxd4 {[%clk 0:03:01]}  Bd7 {[%clk 0:02:52]} 9. e4 {[%clk 0:02:58]}  Nxd4 {[%clk 0:02:48]} 10. Qxd4 {[%clk 0:02:58]}  Bc6 {[%clk 0:02:49]} 11. Qe3 {[%clk 0:02:56]}  a6 {[%clk 0:02:37]} 12. Rd1 {[%clk 0:02:54]}  Qc7 {[%clk 0:02:37]} 13. e5 {[%clk 0:02:54]}  Ng4 {[%clk 0:02:22]} 14. Qg3 {[%clk 0:02:53]}  h5 {[%clk 0:01:55]} 15. Bf4 {[%clk 0:02:52]}  Bc5 {[%clk 0:01:51]} 16. Rd2 {[%clk 0:02:46]}  Qb6 {[%clk 0:01:27]} 17. h3 {[%clk 0:02:43]}  Nxf2 {[%clk 0:01:27]} 18. Rxf2 {[%clk 0:02:35]}  h4 {[%clk 0:01:26]} 19. Qxg7 {[%clk 0:02:36]}  Bxf2+ {[%clk 0:01:26]} 20. Kh1 {[%clk 0:02:36]}  O-O-O {[%clk 0:01:20]} 21. Qxf7 {[%clk 0:02:35]}  Bxg2+ {[%clk 0:00:50]} 22. Kxg2 {[%clk 0:02:33]}  Rhg8+ {[%clk 0:00:49]} 23. Kh1 {[%clk 0:02:25]}  Qc6+ {[%clk 0:00:48]} 24. Nd5 {[%clk 0:02:01]}  exd5 {[%clk 0:00:35]} 25. Qf5+ {[%clk 0:02:01]}  Kb8 {[%clk 0:00:29]} 26. e6+ {[%clk 0:02:01]}  Ka8 {[%clk 0:00:30]} 27. Bd3 {[%clk 0:02:02]}  Rdf8 {[%clk 0:00:23]} 28. Qe5 {[%clk 0:02:01]}  Bg3 {[%clk 0:00:16]} 29. e7 {[%clk 0:01:52]}  Rxf4 {[%clk 0:00:14]} 30. Qe2 {[%clk 0:01:46]}  d4+ {[%clk 0:00:13]} 0-1


[Site "https://www.chess.com"]

[Event "Titled Tuesday Blitz April 19 Early 2022"]
[White "Liyanage, Ranindu Dilshan"]
[Black "Martinez Alcantara, Jose Eduardo"]
[WhiteFideId "9915834"]
[BlackFideId "3805662"]
[WhiteElo "1858"]
[BlackElo "2690"]
[Result "0-1"]
[Round "02"]
[TimeControl "180+1"]
[Date "2022.04.19"]
[WhiteClock "0:00:04"]
[BlackClock "0:00:05"]

1. d4 {[%clk 0:03:00]}  Nf6 {[%clk 0:03:00]} 2. Nc3 {[%clk 0:03:00]}  d5 {[%clk 0:02:59]} 3. Bf4 {[%clk 0:03:01]}  a6 {[%clk 0:02:59]} 4. e3 {[%clk 0:03:01]}  e6 {[%clk 0:03:00]} 5. g4 {[%clk 0:03:01]}  c5 {[%clk 0:02:57]} 6. g5 {[%clk 0:02:58]}  Nfd7 {[%clk 0:02:57]} 7. Qg4 {[%clk 0:02:58]}  Nc6 {[%clk 0:02:52]} 8. O-O-O {[%clk 0:02:52]}  Qa5 {[%clk 0:02:49]} 9. Qg3 {[%clk 0:02:47]}  Nb6 {[%clk 0:02:16]} 10. Bc7 {[%clk 0:02:33]}  Bd7 {[%clk 0:02:16]} 11. Bg2 {[%clk 0:02:20]}  Rc8 {[%clk 0:02:12]} 12. Nge2 {[%clk 0:02:01]}  Be7 {[%clk 0:02:12]} 13. h4 {[%clk 0:02:00]}  O-O {[%clk 0:02:12]} 14. Kb1 {[%clk 0:01:56]}  Rxc7 {[%clk 0:01:55]} 15. Qxc7 {[%clk 0:01:55]}  Rc8 {[%clk 0:01:54]} 16. Qf4 {[%clk 0:01:47]}  cxd4 {[%clk 0:01:47]} 17. exd4 {[%clk 0:01:33]}  Nc4 {[%clk 0:01:47]} 18. Qg3 {[%clk 0:01:13]}  Qb6 {[%clk 0:01:17]} 19. Na4 {[%clk 0:01:04]}  Qa5 {[%clk 0:01:10]} 20. Nec3 {[%clk 0:00:51]}  Qb4 {[%clk 0:00:57]} 21. b3 {[%clk 0:00:32]}  b5 {[%clk 0:00:54]} 22. Bxd5 {[%clk 0:00:27]}  Na3+ {[%clk 0:00:49]} 23. Kb2 {[%clk 0:00:25]}  bxa4 {[%clk 0:00:50]} 24. Bxc6 {[%clk 0:00:20]}  Bxc6 {[%clk 0:00:49]} 25. Rhe1 {[%clk 0:00:19]}  Bd6 {[%clk 0:00:47]} 26. Qd3 {[%clk 0:00:15]}  axb3 {[%clk 0:00:40]} 27. axb3 {[%clk 0:00:16]}  Nb5 {[%clk 0:00:40]} 28. Na2 {[%clk 0:00:12]}  Qa5 {[%clk 0:00:37]} 29. c4 {[%clk 0:00:10]}  Na3 {[%clk 0:00:31]} 30. Qc3 {[%clk 0:00:10]}  Qd8 {[%clk 0:00:32]} 31. Nb4 {[%clk 0:00:07]}  Bb7 {[%clk 0:00:25]} 32. Kxa3 {[%clk 0:00:06]}  a5 {[%clk 0:00:25]} 33. c5 {[%clk 0:00:06]}  axb4+ {[%clk 0:00:25]} 34. Qxb4 {[%clk 0:00:07]}  Bf3 {[%clk 0:00:15]} 35. cxd6 {[%clk 0:00:05]}  Bxd1 {[%clk 0:00:16]} 36. Rxd1 {[%clk 0:00:06]}  Rc6 {[%clk 0:00:16]} 37. d5 {[%clk 0:00:06]}  Rxd6 {[%clk 0:00:17]} 38. Qc5 {[%clk 0:00:06]}  exd5 {[%clk 0:00:14]} 39. b4 {[%clk 0:00:05]}  h6 {[%clk 0:00:14]} 40. Rd4 {[%clk 0:00:05]}  hxg5 {[%clk 0:00:14]} 41. hxg5 {[%clk 0:00:06]}  Rd7 {[%clk 0:00:15]} 42. b5 {[%clk 0:00:06]}  Qxg5 {[%clk 0:00:15]} 43. b6 {[%clk 0:00:06]}  Qd8 {[%clk 0:00:07]} 44. Rb4 {[%clk 0:00:06]}  Rb7 {[%clk 0:00:06]} 45. Qc6 {[%clk 0:00:06]}  Qe7 {[%clk 0:00:04]} 46. Ka4 {[%clk 0:00:04]}  g6 {[%clk 0:00:05]} 47. Qc7 {[%clk 0:00:04]}  Rxc7 {[%clk 0:00:05]} 0-1


[Site "https://www.chess.com"]

[Event "Titled Tuesday Blitz April 19 Early 2022"]
[White "Mika, Tomasz"]
[Black "Cherniaiev, Tykhon"]
[WhiteFideId "1132970"]
[BlackFideId "14182360"]
[WhiteElo "2116"]
[BlackElo "2289"]
[Result "0-1"]
[Round "02"]
[TimeControl "180+1"]
[Date "2022.04.19"]
[WhiteClock "0:00:29"]
[BlackClock "0:01:36"]

1. d4 {[%clk 0:03:00]}  Nf6 {[%clk 0:02:59]} 2. Nf3 {[%clk 0:02:59]}  e6 {[%clk 0:02:53]} 3. g3 {[%clk 0:02:56]}  d5 {[%clk 0:02:53]} 4. Bg2 {[%clk 0:02:56]}  Be7 {[%clk 0:02:52]} 5. O-O {[%clk 0:02:56]}  O-O {[%clk 0:02:53]} 6. c4 {[%clk 0:02:56]}  dxc4 {[%clk 0:02:53]} 7. Qc2 {[%clk 0:02:55]}  a6 {[%clk 0:02:53]} 8. a4 {[%clk 0:02:53]}  Bd7 {[%clk 0:02:53]} 9. Ne5 {[%clk 0:02:48]}  Bc6 {[%clk 0:02:53]} 10. Nxc6 {[%clk 0:02:41]}  Nxc6 {[%clk 0:02:53]} 11. Bxc6 {[%clk 0:02:40]}  bxc6 {[%clk 0:02:53]} 12. Qxc4 {[%clk 0:02:41]}  Qd5 {[%clk 0:02:53]} 13. Qxd5 {[%clk 0:02:30]}  cxd5 {[%clk 0:02:54]} 14. Nc3 {[%clk 0:02:29]}  c5 {[%clk 0:02:54]} 15. dxc5 {[%clk 0:02:17]}  Bxc5 {[%clk 0:02:55]} 16. Rb1 {[%clk 0:02:02]}  Rab8 {[%clk 0:02:55]} 17. b3 {[%clk 0:01:57]}  Rfc8 {[%clk 0:02:52]} 18. Bf4 {[%clk 0:01:50]}  Rb6 {[%clk 0:02:20]} 19. Rfc1 {[%clk 0:01:31]}  Rbc6 {[%clk 0:02:19]} 20. b4 {[%clk 0:01:18]}  Bxf2+ {[%clk 0:02:09]} 21. Kxf2 {[%clk 0:01:19]}  Rxc3 {[%clk 0:02:10]} 22. Rxc3 {[%clk 0:01:19]}  Ne4+ {[%clk 0:02:10]} 23. Ke1 {[%clk 0:00:56]}  Nxc3 {[%clk 0:02:05]} 24. Rc1 {[%clk 0:00:48]}  Rc4 {[%clk 0:02:04]} 25. Be3 {[%clk 0:00:32]}  Nxa4 {[%clk 0:01:38]} 26. Rxc4 {[%clk 0:00:28]}  dxc4 {[%clk 0:01:39]} 27. Bd4 {[%clk 0:00:29]}  f6 {[%clk 0:01:36]} 0-1


[Site "https://www.chess.com"]

[Event "Titled Tuesday Blitz April 19 Early 2022"]
[White "Nakamura, Hikaru"]
[Black "Mirzoev, Azer"]
[WhiteFideId "2016192"]
[BlackFideId "13400304"]
[WhiteElo "2850"]
[BlackElo "2525"]
[Result "1-0"]
[Round "02"]
[TimeControl "180+1"]
[Date "2022.04.19"]
[WhiteClock "0:00:55"]
[BlackClock "0:00:05"]

1. Nf3 {[%clk 0:03:00]}  Nf6 {[%clk 0:02:59]} 2. b3 {[%clk 0:02:59]}  d5 {[%clk 0:02:58]} 3. Bb2 {[%clk 0:02:59]}  e6 {[%clk 0:02:55]} 4. e3 {[%clk 0:02:58]}  Be7 {[%clk 0:02:55]} 5. c4 {[%clk 0:02:56]}  O-O {[%clk 0:02:56]} 6. d4 {[%clk 0:02:57]}  Nbd7 {[%clk 0:02:54]} 7. Bd3 {[%clk 0:02:50]}  c5 {[%clk 0:02:53]} 8. O-O {[%clk 0:02:49]}  b6 {[%clk 0:02:52]} 9. cxd5 {[%clk 0:02:49]}  Nxd5 {[%clk 0:02:52]} 10. a3 {[%clk 0:02:48]}  Bb7 {[%clk 0:02:51]} 11. Nbd2 {[%clk 0:02:47]}  cxd4 {[%clk 0:02:46]} 12. Nxd4 {[%clk 0:02:46]}  Nc5 {[%clk 0:02:46]} 13. Be2 {[%clk 0:02:42]}  Nf6 {[%clk 0:02:42]} 14. b4 {[%clk 0:02:39]}  Nce4 {[%clk 0:02:42]} 15. N2f3 {[%clk 0:02:39]}  Rc8 {[%clk 0:02:39]} 16. Qa4 {[%clk 0:02:39]}  a5 {[%clk 0:02:32]} 17. Rfd1 {[%clk 0:02:34]}  Nd5 {[%clk 0:01:52]} 18. Rac1 {[%clk 0:02:23]}  axb4 {[%clk 0:01:35]} 19. axb4 {[%clk 0:02:22]}  Rxc1 {[%clk 0:01:26]} 20. Rxc1 {[%clk 0:02:23]}  Nxb4 {[%clk 0:01:22]} 21. Qa7 {[%clk 0:02:17]}  Qa8 {[%clk 0:00:54]} 22. Qxb6 {[%clk 0:02:16]}  Nd5 {[%clk 0:00:53]} 23. Qb3 {[%clk 0:02:15]}  Nc5 {[%clk 0:00:38]} 24. Qc2 {[%clk 0:02:15]}  Rc8 {[%clk 0:00:30]} 25. Ra1 {[%clk 0:02:11]}  Qb8 {[%clk 0:00:30]} 26. Qb1 {[%clk 0:02:06]}  h6 {[%clk 0:00:29]} 27. h3 {[%clk 0:02:02]}  Bf6 {[%clk 0:00:27]} 28. Ra5 {[%clk 0:02:02]}  Qc7 {[%clk 0:00:20]} 29. Ra2 {[%clk 0:02:01]}  Nd7 {[%clk 0:00:15]} 30. Qa1 {[%clk 0:01:59]}  Nb4 {[%clk 0:00:11]} 31. Ra4 {[%clk 0:01:54]}  Nd5 {[%clk 0:00:09]} 32. Ra3 {[%clk 0:01:48]}  Nc5 {[%clk 0:00:09]} 33. Nb5 {[%clk 0:01:45]}  Bxb2 {[%clk 0:00:09]} 34. Qxb2 {[%clk 0:01:46]}  Qd8 {[%clk 0:00:09]} 35. Ne5 {[%clk 0:01:43]}  Nf6 {[%clk 0:00:08]} 36. Nd4 {[%clk 0:01:41]}  Nce4 {[%clk 0:00:08]} 37. Qxb7 {[%clk 0:01:40]}  Rc1+ {[%clk 0:00:08]} 38. Kh2 {[%clk 0:01:40]}  Nxf2 {[%clk 0:00:08]} 39. Qxf7+ {[%clk 0:01:39]}  Kh8 {[%clk 0:00:07]} 40. Qxg7+ {[%clk 0:00:56]}  Kxg7 {[%clk 0:00:07]} 41. Nxe6+ {[%clk 0:00:56]}  Kg8 {[%clk 0:00:06]} 42. Nxd8 {[%clk 0:00:57]}  N6e4 {[%clk 0:00:06]} 43. g4 {[%clk 0:00:57]}  Re1 {[%clk 0:00:05]} 44. Bc4+ {[%clk 0:00:57]}  Kf8 {[%clk 0:00:05]} 45. Ra7 {[%clk 0:00:58]}  Rh1+ {[%clk 0:00:05]} 46. Kg2 {[%clk 0:00:58]}  Rxh3 {[%clk 0:00:05]} 47. Ne6+ {[%clk 0:00:56]}  Ke8 {[%clk 0:00:05]} 48. Bb5# {[%clk 0:00:55]} 1-0


[Site "https://www.chess.com"]